[Event "Late-Titled-Tuesday-Blitz-June-18-2024"]
[Site "Chess.com"]
[Date "2024.06.18"]
[Round "11"]
[White "LidongW"]
[Black "protectiago"]
[Result "1-0"]
[WhiteElo "2330"]
[BlackElo "2137"]
[TimeControl "180+1"]
[EndTime "16:06:51 PDT"]
[Termination "LidongW won on time"]

1. e4 {[%clk 0:02:55.4]} 1... c5 {[%clk 0:02:57.9]} 2. c3 {[%clk 0:02:55]} 2...
Nc6 {[%clk 0:02:56.2]} 3. d4 {[%clk 0:02:54.7]} 3... cxd4 {[%clk 0:02:56.4]} 4.
cxd4 {[%clk 0:02:55.6]} 4... Nf6 {[%clk 0:02:55.5]} 5. Nc3 {[%clk 0:02:54.1]}
5... d6 {[%clk 0:02:38.6]} 6. h3 {[%clk 0:02:50.7]} 6... g6 {[%clk 0:02:37.8]}
7. Nf3 {[%clk 0:02:50.9]} 7... Bg7 {[%clk 0:02:38]} 8. Be3 {[%clk 0:02:50.5]}
8... O-O {[%clk 0:02:38.1]} 9. Qd2 {[%clk 0:02:49.9]} 9... Qa5 {[%clk
0:02:35.5]} 10. Bc4 {[%clk 0:02:45.2]} 10... a6 {[%clk 0:02:33.6]} 11. Bb3
{[%clk 0:02:40.7]} 11... b5 {[%clk 0:02:28.9]} 12. Bc2 {[%clk 0:02:06]} 12... b4
{[%clk 0:02:15.8]} 13. Ne2 {[%clk 0:02:05.8]} 13... Qc7 {[%clk 0:01:45.3]} 14.
O-O {[%clk 0:01:59.2]} 14... a5 {[%clk 0:01:45.4]} 15. a4 {[%clk 0:01:54.4]}
15... Ba6 {[%clk 0:01:44.6]} 16. Rfe1 {[%clk 0:01:52]} 16... Rfc8 {[%clk
0:01:43.3]} 17. Rac1 {[%clk 0:01:51.3]} 17... Qb7 {[%clk 0:01:43.2]} 18. Ng3
{[%clk 0:01:50.8]} 18... b3 {[%clk 0:01:38.4]} 19. Bb1 {[%clk 0:01:50.3]} 19...
Nb4 {[%clk 0:01:38.7]} 20. Bh6 {[%clk 0:01:46.2]} 20... Rxc1 {[%clk 0:01:33.8]}
21. Rxc1 {[%clk 0:01:45.8]} 21... Bh8 {[%clk 0:01:24.9]} 22. Rc3 {[%clk
0:01:17.4]} 22... Rc8 {[%clk 0:00:48.8]} 23. Rxb3 {[%clk 0:01:12.7]} 23... Qd7
{[%clk 0:00:48.5]} 24. Ra3 {[%clk 0:00:55.9]} 24... Ne8 {[%clk 0:00:32.6]} 25.
b3 {[%clk 0:00:46.7]} 25... Nc7 {[%clk 0:00:26.7]} 26. Qg5 {[%clk 0:00:35.9]}
26... Ne6 {[%clk 0:00:25.8]} 27. Qd2 {[%clk 0:00:35]} 27... Qc7 {[%clk
0:00:24.1]} 28. Be3 {[%clk 0:00:30.5]} 28... Bg7 {[%clk 0:00:22.1]} 29. Ne2
{[%clk 0:00:29.3]} 29... h6 {[%clk 0:00:22.1]} 30. Ra1 {[%clk 0:00:24.3]} 30...
d5 {[%clk 0:00:19.8]} 31. e5 {[%clk 0:00:24.3]} 31... Kh7 {[%clk 0:00:17.9]} 32.
Ng3 {[%clk 0:00:23.2]} 32... Qb6 {[%clk 0:00:17]} 33. h4 {[%clk 0:00:20.3]}
33... Nc6 {[%clk 0:00:17.1]} 34. h5 {[%clk 0:00:18.2]} 34... Qxb3 {[%clk
0:00:16.5]} 35. Bc2 {[%clk 0:00:16.9]} 35... Qc4 {[%clk 0:00:15.6]} 36. hxg6+
{[%clk 0:00:15.7]} 36... fxg6 {[%clk 0:00:15.5]} 37. Rc1 {[%clk 0:00:16.3]}
37... Qb4 {[%clk 0:00:13.1]} 38. Qd1 {[%clk 0:00:13.5]} 38... Bc4 {[%clk
0:00:06.7]} 39. Nh5 {[%clk 0:00:13.4]} 39... Ncd8 {[%clk 0:00:02.3]} 40. Nh4
{[%clk 0:00:13]} 40... Nf8 {[%clk 0:00:01.1]} 41. Nxg7 {[%clk 0:00:13.1]} 41...
Kxg7 {[%clk 0:00:01]} 42. Qg4 {[%clk 0:00:11.1]} 1-0

[Event "Late-Titled-Tuesday-Blitz-June-18-2024"]
[Site "Chess.com"]
[Date "2024.06.18"]
[Round "11"]
[White "dolynachess"]
[Black "Colombiano07"]
[Result "1-0"]
[WhiteElo "2532"]
[BlackElo "2337"]
[TimeControl "180+1"]
[EndTime "16:06:56 PDT"]
[Termination "dolynachess won by checkmate"]

1. d4 {[%clk 0:03:00.9]} 1... d5 {[%clk 0:02:59.7]} 2. c4 {[%clk 0:03:01.6]}
2... e6 {[%clk 0:03:00.2]} 3. Nf3 {[%clk 0:03:02]} 3... Nf6 {[%clk 0:03:00.2]}
4. g3 {[%clk 0:03:02.8]} 4... Be7 {[%clk 0:03:00.8]} 5. Bg2 {[%clk 0:03:03.1]}
5... O-O {[%clk 0:03:01.5]} 6. O-O {[%clk 0:03:03.5]} 6... dxc4 {[%clk
0:03:02.2]} 7. Ne5 {[%clk 0:03:00.2]} 7... Nc6 {[%clk 0:03:01.9]} 8. Nxc6 {[%clk
0:03:00.4]} 8... bxc6 {[%clk 0:03:02.8]} 9. Na3 {[%clk 0:03:00.8]} 9... Bxa3
{[%clk 0:03:01.4]} 10. bxa3 {[%clk 0:03:01.7]} 10... Ba6 {[%clk 0:03:01.5]} 11.
Qd2 {[%clk 0:02:55.4]} 11... Nd5 {[%clk 0:02:58]} 12. Qa5 {[%clk 0:02:54.7]}
12... Qc8 {[%clk 0:02:51.4]} 13. a4 {[%clk 0:02:53]} 13... Rb8 {[%clk 0:02:47]}
14. Ba3 {[%clk 0:02:51]} 14... Rd8 {[%clk 0:02:47.4]} 15. Rfc1 {[%clk
0:02:45.7]} 15... Qb7 {[%clk 0:02:38.4]} 16. Bc5 {[%clk 0:02:35.9]} 16... c3
{[%clk 0:01:32]} 17. e4 {[%clk 0:02:18.9]} 17... Nf6 {[%clk 0:01:31.9]} 18. Rxc3
{[%clk 0:02:10.4]} 18... Qb2 {[%clk 0:01:30.9]} 19. Rac1 {[%clk 0:02:00.5]}
19... Bd3 {[%clk 0:01:26.8]} 20. f3 {[%clk 0:01:26.8]} 20... Qd2 {[%clk
0:00:59]} 21. Qxc7 {[%clk 0:01:12.5]} 21... Rdc8 {[%clk 0:00:55.5]} 22. Qf4
{[%clk 0:01:09.3]} 22... Rb2 {[%clk 0:00:21.3]} 23. Qxd2 {[%clk 0:01:08.3]}
23... Rxd2 {[%clk 0:00:22.2]} 24. Bxa7 {[%clk 0:00:43.9]} 24... Ra8 {[%clk
0:00:20.4]} 25. Rxc6 {[%clk 0:00:38.4]} 25... h5 {[%clk 0:00:19.5]} 26. Rc8+
{[%clk 0:00:37.5]} 26... Rxc8 {[%clk 0:00:19]} 27. Rxc8+ {[%clk 0:00:38.4]}
27... Kh7 {[%clk 0:00:19.6]} 28. Rc3 {[%clk 0:00:23.2]} 28... Ba6 {[%clk
0:00:15.2]} 29. Bh3 {[%clk 0:00:09.1]} 29... Rxa2 {[%clk 0:00:14]} 30. Bc5
{[%clk 0:00:08.7]} 30... Rxa4 {[%clk 0:00:13.3]} 31. Rc2 {[%clk 0:00:08.8]}
31... Rc4 {[%clk 0:00:12.1]} 32. Rxc4 {[%clk 0:00:08.1]} 32... Bxc4 {[%clk
0:00:13]} 33. Kf2 {[%clk 0:00:08.5]} 33... g5 {[%clk 0:00:11.4]} 34. Bg2 {[%clk
0:00:06.9]} 34... g4 {[%clk 0:00:11.2]} 35. f4 {[%clk 0:00:06.6]} 35... Bd3
{[%clk 0:00:09.7]} 36. Ke3 {[%clk 0:00:06.8]} 36... Bb1 {[%clk 0:00:09.4]} 37.
Be7 {[%clk 0:00:06.8]} 37... Nd7 {[%clk 0:00:08]} 38. d5 {[%clk 0:00:05.7]}
38... Kg6 {[%clk 0:00:06.7]} 39. d6 {[%clk 0:00:04.4]} 39... Bc2 {[%clk
0:00:06.2]} 40. e5 {[%clk 0:00:03.9]} 40... Ba4 {[%clk 0:00:06.4]} 41. Bb7
{[%clk 0:00:03.6]} 41... Kf5 {[%clk 0:00:05.9]} 42. Be4# {[%clk 0:00:02.4]} 1-0

[Event "Late-Titled-Tuesday-Blitz-June-18-2024"]
[Site "Chess.com"]
[Date "2024.06.18"]
[Round "11"]
[White "amylazy"]
[Black "dosto07"]
[Result "1-0"]
[WhiteElo "2496"]
[BlackElo "2581"]
[TimeControl "180+1"]
[EndTime "16:06:59 PDT"]
[Termination "amylazy won on time"]

1. d4 {[%clk 0:02:50.5]} 1... d5 {[%clk 0:03:00.2]} 2. Nf3 {[%clk 0:02:50.8]}
2... Nf6 {[%clk 0:03:00.4]} 3. c4 {[%clk 0:02:51.4]} 3... dxc4 {[%clk
0:03:01.3]} 4. e3 {[%clk 0:02:51.2]} 4... e6 {[%clk 0:03:00.9]} 5. Bxc4 {[%clk
0:02:51.7]} 5... c5 {[%clk 0:03:01.8]} 6. O-O {[%clk 0:02:52]} 6... a6 {[%clk
0:03:00.2]} 7. a4 {[%clk 0:02:51.6]} 7... Nc6 {[%clk 0:03:00.3]} 8. Nc3 {[%clk
0:02:50.7]} 8... cxd4 {[%clk 0:03:00.5]} 9. exd4 {[%clk 0:02:51]} 9... Be7
{[%clk 0:03:00.9]} 10. Bf4 {[%clk 0:02:50.6]} 10... O-O {[%clk 0:03:00.8]} 11.
Rc1 {[%clk 0:02:51.2]} 11... Nb4 {[%clk 0:03:00.6]} 12. h3 {[%clk 0:02:49.6]}
12... Bd7 {[%clk 0:03:00.2]} 13. Ne5 {[%clk 0:02:48.6]} 13... Rc8 {[%clk
0:02:56.8]} 14. Bb3 {[%clk 0:02:46.7]} 14... Bc6 {[%clk 0:02:56.2]} 15. Nxc6
{[%clk 0:02:46.5]} 15... bxc6 {[%clk 0:02:53.7]} 16. Qe2 {[%clk 0:02:42.7]}
16... a5 {[%clk 0:02:51.2]} 17. Rfd1 {[%clk 0:02:42]} 17... Nbd5 {[%clk
0:02:48.3]} 18. Be5 {[%clk 0:02:41.6]} 18... Bd6 {[%clk 0:02:37.8]} 19. Ne4
{[%clk 0:02:38.9]} 19... Nxe4 {[%clk 0:02:33]} 20. Qxe4 {[%clk 0:02:39.8]} 20...
Rb8 {[%clk 0:02:15.5]} 21. Rxc6 {[%clk 0:02:28.4]} 21... Bxe5 {[%clk 0:02:11.4]}
22. Bxd5 {[%clk 0:02:27.8]} 22... exd5 {[%clk 0:01:51.8]} 23. Qxe5 {[%clk
0:02:25.9]} 23... Rxb2 {[%clk 0:01:51.6]} 24. Rc5 {[%clk 0:02:25.3]} 24... g6
{[%clk 0:01:30.5]} 25. Rxd5 {[%clk 0:02:24.2]} 25... Qh4 {[%clk 0:01:28.9]} 26.
Rf1 {[%clk 0:02:19.8]} 26... Rc8 {[%clk 0:01:15.3]} 27. Rxa5 {[%clk 0:02:17.6]}
27... Ra2 {[%clk 0:00:56.5]} 28. Ra7 {[%clk 0:02:13.3]} 28... Qd8 {[%clk
0:00:52.1]} 29. d5 {[%clk 0:02:10.6]} 29... Qe8 {[%clk 0:00:48.8]} 30. Qf4
{[%clk 0:02:01.7]} 30... Rd8 {[%clk 0:00:34.3]} 31. d6 {[%clk 0:02:01.1]} 31...
Re2 {[%clk 0:00:28.2]} 32. Qd4 {[%clk 0:01:43.5]} 32... Re1 {[%clk 0:00:18.5]}
33. d7 {[%clk 0:01:38.8]} 33... Qe6 {[%clk 0:00:16.3]} 34. Rxe1 {[%clk
0:01:34.2]} 34... Qxe1+ {[%clk 0:00:15.7]} 35. Kh2 {[%clk 0:01:35.1]} 35... Qe6
{[%clk 0:00:13.6]} 36. g3 {[%clk 0:01:28.6]} 36... h5 {[%clk 0:00:13.6]} 37. h4
{[%clk 0:01:27.6]} 37... Kh7 {[%clk 0:00:13.8]} 38. Rc7 {[%clk 0:01:26]} 38...
Qf5 {[%clk 0:00:12.1]} 39. Qf4 {[%clk 0:01:16.5]} 39... Qe6 {[%clk 0:00:07]} 40.
Qd2 {[%clk 0:01:14.5]} 40... Qf5 {[%clk 0:00:06.2]} 41. a5 {[%clk 0:01:14.3]}
41... Qb5 {[%clk 0:00:04]} 42. Qd6 {[%clk 0:00:58.7]} 42... Qxa5 {[%clk
0:00:03]} 43. Rc8 {[%clk 0:00:56.9]} 43... Qa2 {[%clk 0:00:01.2]} 44. Kg2 {[%clk
0:00:52.1]} 44... Qa5 {[%clk 0:00:01]} 45. Rxd8 {[%clk 0:00:44.7]} 45... Qxd8
{[%clk 0:00:01]} 46. Qc6 {[%clk 0:00:45.1]} 46... Qe7 {[%clk 0:00:01.1]} 47. Kh2
{[%clk 0:00:41.2]} 47... Qe2 {[%clk 0:00:01]} 48. d8=Q {[%clk 0:00:39.5]} 48...
Qxf2+ {[%clk 0:00:01.4]} 49. Qg2 {[%clk 0:00:40]} 49... Qe3 {[%clk 0:00:01.4]}
50. Qg5 {[%clk 0:00:38.3]} 50... Qe6 {[%clk 0:00:01.4]} 51. Qf2 {[%clk
0:00:38.1]} 51... Qe8 {[%clk 0:00:01.3]} 52. Qgf6 {[%clk 0:00:37.9]} 52... Kg8
{[%clk 0:00:01.5]} 53. Q2b2 {[%clk 0:00:37.4]} 1-0

[Event "Late-Titled-Tuesday-Blitz-June-18-2024"]
[Site "Chess.com"]
[Date "2024.06.18"]
[Round "11"]
[White "Orest_Vovk"]
[Black "Chempiblinka"]
[Result "0-1"]
[WhiteElo "2562"]
[BlackElo "2419"]
[TimeControl "180+1"]
[EndTime "16:07:07 PDT"]
[Termination "Chempiblinka won on time"]

1. g4 {[%clk 0:02:53.7]} 1... d5 {[%clk 0:03:00]} 2. h3 {[%clk 0:02:51.6]} 2...
e5 {[%clk 0:02:54.9]} 3. Bg2 {[%clk 0:02:51.2]} 3... c5 {[%clk 0:02:54.4]} 4. c4
{[%clk 0:02:50.9]} 4... Nc6 {[%clk 0:02:55]} 5. Bxd5 {[%clk 0:02:49.6]} 5... Nf6
{[%clk 0:02:38]} 6. Bg2 {[%clk 0:02:46.7]} 6... Be7 {[%clk 0:02:33.3]} 7. Bxc6+
{[%clk 0:02:46]} 7... bxc6 {[%clk 0:02:33.1]} 8. Qa4 {[%clk 0:02:46.6]} 8... O-O
{[%clk 0:02:22.1]} 9. d3 {[%clk 0:02:46.7]} 9... Rb8 {[%clk 0:02:21.2]} 10. Nc3
{[%clk 0:02:44.7]} 10... Qc7 {[%clk 0:02:13.4]} 11. Nf3 {[%clk 0:02:41]} 11...
Be6 {[%clk 0:02:13.3]} 12. g5 {[%clk 0:02:26.5]} 12... Nh5 {[%clk 0:02:12.5]}
13. Ne4 {[%clk 0:02:26.5]} 13... Nf4 {[%clk 0:02:08.8]} 14. Bxf4 {[%clk
0:02:25.4]} 14... exf4 {[%clk 0:02:09.3]} 15. O-O-O {[%clk 0:02:19.8]} 15... Rb4
{[%clk 0:02:03.3]} 16. Qc2 {[%clk 0:02:16.3]} 16... Rfb8 {[%clk 0:02:03.5]} 17.
b3 {[%clk 0:02:14.6]} 17... a5 {[%clk 0:01:59.8]} 18. Kd2 {[%clk 0:02:13]} 18...
a4 {[%clk 0:01:57.7]} 19. Rb1 {[%clk 0:02:12.7]} 19... Qa5 {[%clk 0:01:53.3]}
20. Kd1 {[%clk 0:01:52.5]} 20... axb3 {[%clk 0:01:49.4]} 21. axb3 {[%clk
0:01:42.8]} 21... Qa3 {[%clk 0:01:32.4]} 22. Nfd2 {[%clk 0:01:41.2]} 22... Bf5
{[%clk 0:01:28.4]} 23. Qb2 {[%clk 0:01:36.7]} 23... Qa7 {[%clk 0:01:20.1]} 24.
h4 {[%clk 0:01:24.3]} 24... Bxe4 {[%clk 0:01:13.6]} 25. dxe4 {[%clk 0:01:24.1]}
25... Rd8 {[%clk 0:01:10.6]} 26. Ke1 {[%clk 0:01:22.5]} 26... Qd7 {[%clk
0:01:09.8]} 27. f3 {[%clk 0:01:14.7]} 27... Rb7 {[%clk 0:00:53.1]} 28. Rd1
{[%clk 0:01:13]} 28... Qe6 {[%clk 0:00:53.4]} 29. Nb1 {[%clk 0:00:43.1]} 29...
Rdb8 {[%clk 0:00:46.7]} 30. Rd3 {[%clk 0:00:35.1]} 30... Bd6 {[%clk 0:00:29.8]}
31. Nd2 {[%clk 0:00:26.1]} 31... Be5 {[%clk 0:00:29.8]} 32. Qa2 {[%clk
0:00:24.3]} 32... Bd4 {[%clk 0:00:26.2]} 33. Kf1 {[%clk 0:00:18.4]} 33... Qe7
{[%clk 0:00:24.3]} 34. Kg2 {[%clk 0:00:14.7]} 34... Ra7 {[%clk 0:00:24.2]} 35.
Qc2 {[%clk 0:00:14.1]} 35... Rba8 {[%clk 0:00:22.8]} 36. b4 {[%clk 0:00:06.2]}
36... Ra2 {[%clk 0:00:22.9]} 37. Qd1 {[%clk 0:00:06.5]} 37... h6 {[%clk
0:00:19.1]} 38. bxc5 {[%clk 0:00:06.2]} 38... Bxc5 {[%clk 0:00:17.5]} 39. Nb3
{[%clk 0:00:06.4]} 39... Be3 {[%clk 0:00:16.2]} 40. Rd7 {[%clk 0:00:04.9]} 40...
Qe6 {[%clk 0:00:12.1]} 41. Rd8+ {[%clk 0:00:04.2]} 41... Kh7 {[%clk 0:00:10.8]}
42. Rxa8 {[%clk 0:00:04.2]} 42... Rxa8 {[%clk 0:00:11.6]} 43. Qd3 {[%clk
0:00:04.3]} 43... Qe5 {[%clk 0:00:10.4]} 44. c5 {[%clk 0:00:03.6]} 44... Ra2
{[%clk 0:00:09.8]} 45. gxh6 {[%clk 0:00:03.9]} 45... gxh6 {[%clk 0:00:08.9]} 46.
h5 {[%clk 0:00:03.7]} 46... Ra8 {[%clk 0:00:08.6]} 0-1

[Event "Late-Titled-Tuesday-Blitz-June-18-2024"]
[Site "Chess.com"]
[Date "2024.06.18"]
[Round "11"]
[White "Sic_Transit_GM"]
[Black "Nicolik"]
[Result "1-0"]
[WhiteElo "2549"]
[BlackElo "2621"]
[TimeControl "180+1"]
[EndTime "16:07:08 PDT"]
[Termination "Sic_Transit_GM won by checkmate"]

1. Nf3 {[%clk 0:02:59.9]} 1... d5 {[%clk 0:02:59.9]} 2. e3 {[%clk 0:03:00]} 2...
Nf6 {[%clk 0:02:59.2]} 3. c4 {[%clk 0:03:00.5]} 3... e6 {[%clk 0:02:59]} 4. b3
{[%clk 0:03:00.5]} 4... Bd6 {[%clk 0:02:58.7]} 5. Bb2 {[%clk 0:03:00.5]} 5...
O-O {[%clk 0:02:56.7]} 6. Nc3 {[%clk 0:02:58.2]} 6... b6 {[%clk 0:02:55.8]} 7.
g3 {[%clk 0:02:57.8]} 7... Bb7 {[%clk 0:02:54.5]} 8. Bg2 {[%clk 0:02:58.4]} 8...
c5 {[%clk 0:02:46.7]} 9. O-O {[%clk 0:02:56.5]} 9... Nc6 {[%clk 0:02:45.9]} 10.
cxd5 {[%clk 0:02:52.7]} 10... exd5 {[%clk 0:02:45.2]} 11. d4 {[%clk 0:02:52.9]}
11... c4 {[%clk 0:02:44.5]} 12. bxc4 {[%clk 0:02:51.4]} 12... dxc4 {[%clk
0:02:45.4]} 13. e4 {[%clk 0:02:50.9]} 13... Bb4 {[%clk 0:02:44.3]} 14. d5 {[%clk
0:02:46.2]} 14... Ne7 {[%clk 0:02:35.9]} 15. Re1 {[%clk 0:02:40.1]} 15... Ng6
{[%clk 0:02:34.6]} 16. a3 {[%clk 0:02:37.5]} 16... Bc5 {[%clk 0:02:34]} 17. h3
{[%clk 0:02:27.7]} 17... Re8 {[%clk 0:02:28]} 18. Qc2 {[%clk 0:01:55.6]} 18...
Rc8 {[%clk 0:02:27.4]} 19. Rad1 {[%clk 0:01:55]} 19... a5 {[%clk 0:02:05]} 20.
Na4 {[%clk 0:01:39]} 20... b5 {[%clk 0:02:02.2]} 21. Nxc5 {[%clk 0:01:34.1]}
21... Rxc5 {[%clk 0:02:03.1]} 22. Qc3 {[%clk 0:01:22]} 22... Qb6 {[%clk
0:01:59]} 23. Qc2 {[%clk 0:00:58.2]} 23... b4 {[%clk 0:01:58.1]} 24. Bd4 {[%clk
0:00:57.8]} 24... c3 {[%clk 0:01:53.2]} 25. h4 {[%clk 0:00:33.9]} 25... Rec8
{[%clk 0:01:42]} 26. Bxc5 {[%clk 0:00:28.3]} 26... Rxc5 {[%clk 0:01:39.7]} 27.
Rb1 {[%clk 0:00:24.4]} 27... Nd7 {[%clk 0:01:37.1]} 28. axb4 {[%clk 0:00:19.2]}
28... axb4 {[%clk 0:01:37.1]} 29. Qa4 {[%clk 0:00:18]} 29... Rb5 {[%clk
0:01:32.9]} 30. Bf1 {[%clk 0:00:18.1]} 30... c2 {[%clk 0:01:11.2]} 31. Qxb5
{[%clk 0:00:16]} 31... cxb1=Q {[%clk 0:01:09]} 32. Rxb1 {[%clk 0:00:15.4]} 32...
Qc7 {[%clk 0:01:04.9]} 33. Rxb4 {[%clk 0:00:15]} 33... Bc8 {[%clk 0:01:00.3]}
34. Rc4 {[%clk 0:00:14.7]} 34... Qd8 {[%clk 0:00:59.6]} 35. Qc6 {[%clk
0:00:13.7]} 35... Nb6 {[%clk 0:00:59.9]} 36. Rb4 {[%clk 0:00:12.8]} 36... Nd7
{[%clk 0:00:59.2]} 37. Ba6 {[%clk 0:00:06.7]} 37... Ne7 {[%clk 0:00:58.5]} 38.
Qa8 {[%clk 0:00:06]} 38... Nb6 {[%clk 0:00:56.1]} 39. Qa7 {[%clk 0:00:04.8]}
39... Bxa6 {[%clk 0:00:52.2]} 40. Qxb6 {[%clk 0:00:05.2]} 40... Qc8 {[%clk
0:00:50]} 41. Qb8 {[%clk 0:00:05.2]} 41... h6 {[%clk 0:00:48.9]} 42. Qxc8+
{[%clk 0:00:05.4]} 42... Nxc8 {[%clk 0:00:48.8]} 43. Ra4 {[%clk 0:00:05.9]}
43... Bb5 {[%clk 0:00:48.3]} 44. Ra8 {[%clk 0:00:05.6]} 44... Bd7 {[%clk
0:00:48.5]} 45. Ne5 {[%clk 0:00:06.2]} 45... Bh3 {[%clk 0:00:47.6]} 46. g4
{[%clk 0:00:05.3]} 46... f6 {[%clk 0:00:48.3]} 47. Rxc8+ {[%clk 0:00:04.9]}
47... Kh7 {[%clk 0:00:49]} 48. Nc6 {[%clk 0:00:05.2]} 48... Bxg4 {[%clk
0:00:49.4]} 49. Rd8 {[%clk 0:00:05.8]} 49... f5 {[%clk 0:00:49.4]} 50. d6 {[%clk
0:00:06.3]} 50... fxe4 {[%clk 0:00:50.1]} 51. Nd4 {[%clk 0:00:06.2]} 51... e3
{[%clk 0:00:50.2]} 52. fxe3 {[%clk 0:00:06.2]} 52... g5 {[%clk 0:00:50.5]} 53.
Re8 {[%clk 0:00:06.4]} 53... gxh4 {[%clk 0:00:50.8]} 54. d7 {[%clk 0:00:06.8]}
54... Bxd7 {[%clk 0:00:50.5]} 55. Re7+ {[%clk 0:00:07.2]} 55... Kg6 {[%clk
0:00:51.4]} 56. Rxd7 {[%clk 0:00:08.1]} 56... Kg5 {[%clk 0:00:52]} 57. Kh2
{[%clk 0:00:08.8]} 57... Kg4 {[%clk 0:00:52.6]} 58. Rg7+ {[%clk 0:00:08.9]}
58... Kh5 {[%clk 0:00:52.7]} 59. Ne2 {[%clk 0:00:08.6]} 59... h3 {[%clk
0:00:52.7]} 60. Nf4+ {[%clk 0:00:09]} 60... Kh4 {[%clk 0:00:53.3]} 61. Rd7
{[%clk 0:00:09.4]} 61... h5 {[%clk 0:00:53.7]} 62. Nxh3 {[%clk 0:00:09.3]} 62...
Kg4 {[%clk 0:00:54.1]} 63. Rd4+ {[%clk 0:00:09.9]} 63... Kf5 {[%clk 0:00:54]}
64. Rf4+ {[%clk 0:00:10.3]} 64... Kg6 {[%clk 0:00:54.1]} 65. Kg3 {[%clk
0:00:10.7]} 65... Kh6 {[%clk 0:00:55]} 66. Kh4 {[%clk 0:00:11.1]} 66... Kg7
{[%clk 0:00:55.9]} 67. Kg5 {[%clk 0:00:10.7]} 67... Kg8 {[%clk 0:00:56.8]} 68.
Rb4 {[%clk 0:00:10.2]} 68... Kh8 {[%clk 0:00:57.7]} 69. Rb7 {[%clk 0:00:10.2]}
69... Kg8 {[%clk 0:00:58]} 70. Kf6 {[%clk 0:00:10.8]} 70... Kh8 {[%clk
0:00:58.9]} 71. Kg6 {[%clk 0:00:10.8]} 71... Kg8 {[%clk 0:00:59.8]} 72. Rb8#
{[%clk 0:00:11.5]} 1-0

[Event "Late-Titled-Tuesday-Blitz-June-18-2024"]
[Site "Chess.com"]
[Date "2024.06.18"]
[Round "11"]
[White "Hakiki_satranc"]
[Black "carloseduar100"]
[Result "0-1"]
[WhiteElo "2411"]
[BlackElo "2270"]
[TimeControl "180+1"]
[EndTime "16:07:11 PDT"]
[Termination "carloseduar100 won on time"]

1. e4 {[%clk 0:03:00.9]} 1... e6 {[%clk 0:02:59.4]} 2. d3 {[%clk 0:02:51.4]}
2... d5 {[%clk 0:02:59.2]} 3. Nd2 {[%clk 0:02:51.9]} 3... Nf6 {[%clk 0:02:58.7]}
4. Ngf3 {[%clk 0:02:47.7]} 4... c5 {[%clk 0:02:57.8]} 5. g3 {[%clk 0:02:45.2]}
5... Nc6 {[%clk 0:02:57.7]} 6. Bg2 {[%clk 0:02:45.5]} 6... Be7 {[%clk
0:02:56.1]} 7. O-O {[%clk 0:02:45.7]} 7... h5 {[%clk 0:02:55.7]} 8. Re1 {[%clk
0:02:42.1]} 8... b5 {[%clk 0:02:45.5]} 9. c3 {[%clk 0:02:27.2]} 9... a5 {[%clk
0:02:45]} 10. a3 {[%clk 0:02:22.7]} 10... Bb7 {[%clk 0:02:43.9]} 11. Qc2 {[%clk
0:02:21.3]} 11... b4 {[%clk 0:02:42.6]} 12. axb4 {[%clk 0:02:20.4]} 12... axb4
{[%clk 0:02:43.2]} 13. Rxa8 {[%clk 0:02:20.4]} 13... Qxa8 {[%clk 0:02:42]} 14.
exd5 {[%clk 0:02:14.3]} 14... bxc3 {[%clk 0:02:19.3]} 15. bxc3 {[%clk
0:01:57.9]} 15... Nxd5 {[%clk 0:02:17.6]} 16. Nc4 {[%clk 0:01:46]} 16... h4
{[%clk 0:02:14.2]} 17. d4 {[%clk 0:01:40]} 17... cxd4 {[%clk 0:02:10]} 18. cxd4
{[%clk 0:01:29.3]} 18... hxg3 {[%clk 0:02:09.3]} 19. hxg3 {[%clk 0:01:30.2]}
19... Ndb4 {[%clk 0:01:59.7]} 20. Qd1 {[%clk 0:00:47.6]} 20... Kf8 {[%clk
0:01:41.2]} 21. Nb6 {[%clk 0:00:38]} 21... Qd8 {[%clk 0:01:32.4]} 22. Na4 {[%clk
0:00:27]} 22... Qa5 {[%clk 0:01:16.1]} 23. Ba3 {[%clk 0:00:20.1]} 23... Qh5
{[%clk 0:01:15]} 24. Bxb4 {[%clk 0:00:16.6]} 24... Nxb4 {[%clk 0:01:15.9]} 25.
Nc5 {[%clk 0:00:15.2]} 25... Bd5 {[%clk 0:01:11]} 26. Nh4 {[%clk 0:00:13.3]}
26... Bxh4 {[%clk 0:01:07.2]} 27. Qxh5 {[%clk 0:00:12.2]} 27... Rxh5 {[%clk
0:01:06.3]} 28. gxh4 {[%clk 0:00:12.1]} 28... Rxh4 {[%clk 0:01:03.7]} 29. Bxd5
{[%clk 0:00:10.9]} 29... Nxd5 {[%clk 0:01:04.6]} 30. Ra1 {[%clk 0:00:10.4]}
30... Rxd4 {[%clk 0:00:59.9]} 31. Ra8+ {[%clk 0:00:09.9]} 31... Ke7 {[%clk
0:00:59.9]} 32. Ra7+ {[%clk 0:00:10.6]} 32... Kf6 {[%clk 0:00:56.2]} 33. Nd7+
{[%clk 0:00:10.1]} 33... Kf5 {[%clk 0:00:54.2]} 34. Nf8 {[%clk 0:00:07.1]} 34...
Rg4+ {[%clk 0:00:53]} 35. Kf1 {[%clk 0:00:07]} 35... f6 {[%clk 0:00:50.4]} 36.
Ra6 {[%clk 0:00:06.5]} 36... Nf4 {[%clk 0:00:48.6]} 37. Nd7 {[%clk 0:00:05.2]}
37... e5 {[%clk 0:00:44.3]} 38. Nc5 {[%clk 0:00:04.2]} 38... Rh4 {[%clk
0:00:42.6]} 39. f3 {[%clk 0:00:04.1]} 39... Rh2 {[%clk 0:00:39.8]} 40. Ne4
{[%clk 0:00:03]} 40... Rb2 {[%clk 0:00:32.3]} 41. Ra7 {[%clk 0:00:03]} 41... Ne6
{[%clk 0:00:27]} 42. Ra6 {[%clk 0:00:02.9]} 42... Nd4 {[%clk 0:00:26.3]} 43. Ra7
{[%clk 0:00:02.6]} 43... Nxf3 {[%clk 0:00:20.5]} 44. Ng3+ {[%clk 0:00:02.7]}
44... Kf4 {[%clk 0:00:20.2]} 45. Rxg7 {[%clk 0:00:03.2]} 45... f5 {[%clk
0:00:18.9]} 46. Nh5+ {[%clk 0:00:02.8]} 46... Ke3 {[%clk 0:00:18.9]} 47. Rg2
{[%clk 0:00:01.6]} 47... Rxg2 {[%clk 0:00:18.1]} 48. Kxg2 {[%clk 0:00:01.5]}
48... f4 {[%clk 0:00:18.2]} 49. Kf1 {[%clk 0:00:01.3]} 49... e4 {[%clk
0:00:18.3]} 50. Nf6 {[%clk 0:00:01]} 50... Nd2+ {[%clk 0:00:18.4]} 51. Ke1
{[%clk 0:00:01]} 51... f3 {[%clk 0:00:17.5]} 0-1